fUSD/lending_fUSD_20241024
["ID","MTS","AMOUNT","RATE_DAILY","PERIOD"]
[340769030,1729789859215,-608.33248081,0.00062897,120]
[340769031,1729789859224,-1914.61,0.00062897,120]
[340769032,1729789859234,-500.0,0.00062897,120]
[340769033,1729789859243,-1696.6,0.00062897,120]
[340769034,1729789859253,-164.68352614,0.00062897,120]
[340769035,1729789859264,-1440.78,0.00062897,120]
[340769036,1729789859273,-1577.79,0.00062897,120]
[340769037,1729789859283,-422.53006958,0.00062897,120]
[340769038,1729789859292,-851.28,0.00062897,120]
[340769039,1729789859301,-500.0,0.00062897,120]
[340769040,1729789859311,-500.0,0.00062897,120]
[340769041,1729789859321,-500.0,0.00062897,120]
[340769042,1729789859330,-500.0,0.00062897,120]
[340769043,1729789859340,-500.0,0.00062897,120]
[340769044,1729789859349,-606.71,0.00062897,120]
[340769045,1729789859358,-500.0,0.00062897,120]
[340769046,1729789859368,-500.0,0.00062897,120]
[340769047,1729789859378,-500.0,0.00062897,120]
[340769048,1729789859387,-500.0,0.00062897,120]
[340769049,1729789859397,-564.23485359,0.00062897,120]
[340769050,1729789859407,-500.0,0.00062897,120]
[340769051,1729789859417,-500.0,0.00062897,120]
[340769052,1729789859427,-500.0,0.00062897,120]
[340769053,1729789859436,-716.22,0.00062897,120]
[340769054,1729789859445,-500.0,0.00062897,120]
[340769055,1729789859455,-4062.48,0.00062897,120]
[340769056,1729789859465,-512.27276185,0.00062897,120]
[340769057,1729789859475,-1429.13,0.00062897,120]
[340769058,1729789859484,-500.0,0.00062897,120]
[340769059,1729789859494,-2173.08,0.00062897,120]
[340769060,1729789859503,-500.0,0.00062897,120]
[340769061,1729789859513,-500.0,0.00062897,120]
[340769062,1729789859523,-265.72457902,0.00062897,120]
[340769063,1729789859533,-1202.54,0.00062897,120]
[340769064,1729789859542,-500.0,0.00062897,120]
[340769065,1729789859552,-500.0,0.00062897,120]
[340769066,1729789859561,-500.0,0.00062897,90]
[340769067,1729789859571,-500.0,0.00062897,120]
[340769068,1729789859581,-2005.65,0.00062897,120]
[340769069,1729789859590,-752.16,0.00062897,120]
[340769070,1729789859600,-500.0,0.00062897,120]
[340769071,1729789859609,-500.0,0.00062897,120]
[340769072,1729789859620,-703.71,0.00062897,120]
[340769073,1729789859629,-500.0,0.00062897,120]
[340769074,1729789859639,-2593.06,0.00062897,120]
[340769075,1729789859649,-1381.94,0.00062897,60]
[340769076,1729789859659,-1900.97,0.00062897,120]
[340769077,1729789859669,-500.0,0.00062897,120]
[340769078,1729789859680,-2139.75,0.00062897,120]
[340769079,1729789859689,-500.0,0.00062897,120]
[340769080,1729789859699,-500.0,0.00062897,120]
[340769081,1729789859709,-572.99,0.00062897,21]
[340769082,1729789859719,-500.0,0.00062897,120]
[340769083,1729789859728,-500.0,0.00062897,120]
[340769084,1729789859737,-500.0,0.00062897,120]
[340769085,1729789859747,-1414.56,0.00062897,120]
[340769086,1729789859757,-936.98,0.00062897,120]
[340769087,1729789859767,-500.0,0.00062898,7]
[340769088,1729789859776,-500.0,0.00062898,120]
[340769089,1729789859786,-500.0,0.00062898,120]
[340769090,1729789859795,-504.51323654,0.00062898,120]
[340769091,1729789859805,-500.0,0.00062898,120]
[340769092,1729789859814,-500.0,0.00062898,120]
[340769093,1729789859826,-500.0,0.00062898,120]
[340769094,1729789859836,-506.36101181,0.00062898,120]
[340769095,1729789859845,-500.0,0.00062898,120]
[340769096,1729789859855,-500.0,0.00062898,120]
[340769097,1729789859864,-500.0,0.00062898,120]
[340769098,1729789859873,-500.0,0.00062898,120]
[340769099,1729789859883,-500.0,0.00062898,120]
[340769100,1729789859892,-500.0,0.00062898,120]
[340769101,1729789859901,-500.0,0.00062898,120]
[340769102,1729789859911,-500.0,0.00062898,120]
[340769103,1729789859920,-500.0,0.00062898,120]
[340769104,1729789859930,-500.0,0.00062898,120]
[340769105,1729789859940,-500.0,0.00062898,120]
[340769106,1729789859949,-500.0,0.00062898,120]
[340769107,1729789859958,-500.0,0.00062898,120]
[340769108,1729789859967,-500.0,0.00062898,120]
[340769109,1729789859977,-520.46741877,0.00062898,120]
[340769110,1729789859987,-561.73566378,0.00062898,120]
[340769111,1729789859996,-500.0,0.00062898,120]
[340769112,1729789860005,-500.0,0.00062898,120]
[340769113,1729789860015,-500.0,0.00062898,120]
[340769114,1729789860024,-500.0,0.00062898,120]
[340769115,1729789860034,-500.0,0.00062898,120]
[340769116,1729789860043,-500.0,0.00062898,120]
[340769117,1729789860053,-500.0,0.00062898,120]
[340769118,1729789860062,-501.55375866,0.00062898,120]
[340769119,1729789860072,-500.0,0.00062898,120]
[340769120,1729789860083,-500.0,0.00062898,120]
[340769121,1729789860094,-500.0,0.00062898,120]
[340769122,1729789860103,-500.0,0.00062898,120]
[340769123,1729789860113,-500.0,0.00062898,120]
[340769124,1729789860123,-502.80639412,0.00062898,120]
[340769125,1729789860133,-500.0,0.00062898,120]
[340769126,1729789860143,-500.0,0.00062898,120]
[340769127,1729789860155,-500.0,0.00062898,120]
[340769128,1729789860167,-500.0,0.00062898,120]
[340769129,1729789860177,-500.0,0.00062898,120]
[340769130,1729789860186,-500.0,0.00062898,120]
[340769131,1729789860196,-500.0,0.00062898,120]
[340769132,1729789860206,-500.0,0.00062898,120]
[340769133,1729789860215,-500.0,0.00062898,120]
[340769134,1729789860224,-501.48184595,0.00062898,120]
[340769135,1729789860234,-500.0,0.00062898,120]
[340769136,1729789860243,-500.0,0.00062898,120]
[340769137,1729789860253,-500.0,0.00062898,120]
[340769138,1729789860263,-500.0,0.00062898,120]
[340769139,1729789860272,-500.0,0.00062898,120]
[340769140,1729789860281,-500.0,0.00062898,120]
[340769141,1729789860291,-500.0,0.00062898,120]
[340769142,1729789860300,-500.0,0.00062898,120]
[340769143,1729789860309,-502.78193561,0.00062898,120]
[340769144,1729789860321,-246.10183847,0.00062898,120]
[340769145,1729789860331,-501.43627798,0.00062898,120]
[340769146,1729789860340,-500.0,0.00062898,120]
[340769147,1729789860350,-605.0703631,0.00062898,120]
[340769148,1729789860359,-500.0,0.00062898,120]
[340769149,1729789860369,-500.0,0.00062898,120]
[340769150,1729789860378,-500.0,0.00062898,120]
[340769151,1729789860388,-502.8101151,0.00062898,120]
[340769152,1729789860398,-502.58474832,0.00062898,120]
[340769153,1729789860408,-500.0,0.00062898,120]
[340769154,1729789860418,-500.0,0.00062898,120]
[340769155,1729789860427,-500.0,0.00062898,120]
[340769156,1729789860437,-500.0,0.00062898,120]
[340769157,1729789860446,-516.61963586,0.00062898,120]
[340769158,1729789860456,-500.0,0.00062898,120]
[340769159,1729789860466,-500.0,0.00062898,120]
[340769160,1729789860477,-500.0,0.00062898,120]
[340769161,1729789860486,-505.56026093,0.00062898,120]
[340769162,1729789860496,-501.63111142,0.00062898,120]
[340769163,1729789860506,-504.10284666,0.00062898,120]
[340769164,1729789860515,-502.55628763,0.00062898,120]
[340769165,1729789860525,-500.0,0.00062898,120]
[340769166,1729789860534,-500.0,0.00062898,120]
[340769167,1729789860639,-500.0,0.00062898,120]
[340769168,1729789860649,-507.1365981,0.00062898,120]
[340769169,1729789860659,-500.0,0.00062898,120]
[340769170,1729789860668,-521.30470343,0.00062898,120]
[340769171,1729789860678,-515.18882824,0.00062898,120]
[340769172,1729789860687,-500.0,0.00062898,120]
[340769173,1729789860696,-500.0,0.00062898,120]
[340769174,1729789860705,-500.0,0.00062898,120]
[340769175,1729789860715,-500.0,0.00062898,120]
[340769176,1729789860724,-500.0,0.00062898,120]
[340769177,1729789860734,-500.0,0.00062898,120]
[340769178,1729789860743,-500.0,0.00062898,120]
[340769179,1729789860753,-500.0,0.00062898,30]
[340769180,1729789860763,-500.0,0.00062898,120]
[340769181,1729789860773,-500.0,0.00062898,120]
[340769182,1729789860783,-500.0,0.00062898,120]
[340769183,1729789860793,-500.0,0.00062898,120]
[340769184,1729789860802,-500.0,0.00062898,120]
[340769185,1729789860811,-503.21964425,0.00062898,120]
[340769186,1729789860822,-549.65805845,0.00062898,120]
[340769187,1729789860832,-490.0,0.00062898,120]
[340769188,1729789860842,-500.0,0.00062898,120]
[340769189,1729789860852,-504.09108458,0.00062898,120]
[340769190,1729789860861,-500.0,0.00062898,120]
[340769191,1729789860871,-500.0,0.00062898,120]
[340769192,1729789860880,-500.0,0.00062898,120]
[340769193,1729789860889,-500.0,0.00062898,120]
[340769194,1729789860899,-509.31116561,0.00062898,120]
[340769195,1729789860908,-500.0,0.00062898,120]
[340769196,1729789860918,-500.0,0.00062898,120]
[340769197,1729789860928,-500.0,0.00062898,120]
[340769198,1729789860937,-500.0,0.00062898,120]
[340769199,1729789860947,-500.0,0.00062898,120]
[340769200,1729789860956,-500.0,0.00062898,120]
[340769201,1729789860966,-500.0,0.00062898,120]
[340769202,1729789860975,-500.0,0.00062898,120]
[340769203,1729789860984,-500.0,0.00062898,120]
[340769204,1729789860994,-500.0,0.00062898,120]
[340769205,1729789861003,-500.0,0.00062898,120]
[340769206,1729789861013,-500.0,0.00062898,120]
[340769207,1729789861022,-500.0,0.00062898,120]
[340769208,1729789861032,-500.0,0.00062898,120]
[340769209,1729789861041,-553.05,0.00062898,120]
[340769210,1729789861051,-501.23373386,0.00062898,120]
[340769211,1729789861060,-500.0,0.00062898,120]
[340769212,1729789861071,-500.0,0.00062898,120]
[340769213,1729789861081,-500.0,0.00062898,120]
[340769214,1729789861093,-500.0,0.00062898,120]
[340769215,1729789861103,-500.0,0.00062898,120]
[340769216,1729789861112,-500.0,0.00062898,120]
[340769217,1729789861122,-500.0,0.00062898,120]
[340769218,1729789861132,-500.0,0.00062898,120]
[340769219,1729789861142,-500.0,0.00062898,120]
[340769220,1729789861151,-500.0,0.00062898,120]
[340769221,1729789861161,-500.0,0.00062898,120]
[340769222,1729789861171,-500.0,0.00062898,120]
[340769223,1729789861181,-500.0,0.00062898,120]
[340769224,1729789861190,-500.0,0.00062898,120]
[340769225,1729789861200,-500.0,0.00062898,120]
[340769226,1729789861209,-500.0,0.00062898,120]
[340769227,1729789861218,-500.0,0.00062898,120]
[340769228,1729789861227,-500.0,0.00062898,120]
[340769229,1729789861237,-500.0,0.00062898,60]
[340769230,1729789861246,-500.0,0.00062898,120]
[340769231,1729789861255,-500.0,0.00062898,120]
[340769232,1729789861265,-500.0,0.00062898,120]
[340769233,1729789861275,-500.0,0.00062898,120]
[340769234,1729789861285,-531.55380377,0.00062898,120]
[340769235,1729789861294,-500.0,0.00062898,120]
[340769236,1729789861303,-526.30361933,0.00062898,120]
[340769237,1729789861312,-531.33058371,0.00062898,120]
[340769238,1729789861324,-722.9,0.00062898,14]
[340769239,1729789861333,-728.95,0.00062898,120]
[340769240,1729789861342,-500.0,0.00062898,120]
[340769241,1729789861352,-527.55863779,0.00062898,120]
[340769242,1729789861362,-500.0,0.00062898,120]
[340769243,1729789861372,-500.0,0.00062898,120]
[340769244,1729789861382,-620.85,0.00062898,120]
[340769245,1729789861392,-500.0,0.00062898,120]
[340769246,1729789861401,-500.0,0.00062898,120]
[340769247,1729789861411,-500.0,0.00062898,120]
[340769248,1729789861420,-500.0,0.00062898,120]
[340769249,1729789861430,-500.0,0.00062898,120]
[340769250,1729789861439,-506.78674012,0.00062898,120]
[340769251,1729789861448,-503.42739254,0.00062898,120]
[340769252,1729789861457,-500.0,0.00062898,120]
[340769253,1729789861467,-500.0,0.00062898,120]
[340769254,1729789861476,-502.02283491,0.00062898,120]
[340769255,1729789861486,-558.33,0.00062898,120]
[340769256,1729789861495,-500.0,0.00062898,120]
[340769257,1729789861504,-500.0,0.00062898,120]
[340769258,1729789861513,-500.0,0.00062898,120]
[340769259,1729789861522,-500.0,0.00062898,120]
[340769260,1729789861531,-500.0,0.00062898,120]
[340769261,1729789861540,-500.0,0.00062898,120]
[340769262,1729789861550,-500.0,0.00062898,120]
[340769263,1729789861559,-500.0,0.00062898,120]
[340769264,1729789861571,-500.0,0.00062898,120]
[340769265,1729789861580,-513.23048515,0.00062898,120]
[340769266,1729789861590,-501.27,0.00062898,120]
[340769267,1729789861599,-500.0,0.00062898,120]
[340769268,1729789861609,-500.0,0.00062898,120]
[340769269,1729789861619,-594.83760305,0.00062898,120]
[340769270,1729789861629,-500.0,0.00062898,120]
[340769271,1729789861638,-1047.79,0.00062898,120]
[340769272,1729789861648,-500.0,0.00062898,120]
[340769273,1729789861657,-500.0,0.00062898,120]
[340769274,1729789861667,-500.0,0.00062898,120]
[340769275,1729789861676,-517.95370286,0.00062898,120]
[340769276,1729789861685,-500.0,0.00062898,120]
[340769277,1729789861694,-503.79204557,0.00062898,120]
[340769278,1729789861704,-978.35,0.00062898,120]
[340769279,1729789861713,-502.86289988,0.00062898,120]
[340769280,1729789861723,-609.27305369,0.00062898,120]
[340769281,1729789861732,-500.0,0.00062898,120]
[340769282,1729789861741,-559.03884912,0.00062898,120]
[340769283,1729789861751,-509.59254683,0.00062898,120]
[340769284,1729789861760,-500.0,0.00062898,120]
[340769285,1729789861769,-508.66217711,0.00062898,120]
[340769286,1729789861778,-530.29455458,0.00062898,120]
[340769287,1729789861788,-500.0,0.00062898,120]
[340769288,1729789861797,-505.15809215,0.00062898,120]
[340769289,1729789861806,-500.0,0.00062898,120]
[340769290,1729789861815,-500.0,0.00062898,120]
[340769291,1729789861826,-1013.75,0.00062898,120]
[340769292,1729789861835,-500.0,0.00062898,120]
[340769293,1729789861844,-500.0,0.00062898,120]
[340769294,1729789861854,-500.0,0.00062898,120]
[340769295,1729789861863,-500.0,0.00062898,120]
[340769296,1729789861872,-647.77339195,0.00062898,120]
[340769297,1729789861881,-500.0,0.00062898,120]
[340769298,1729789861891,-500.0,0.00062898,120]
[340769299,1729789861900,-500.0,0.00062898,120]
[340769300,1729789861910,-500.0,0.00062898,120]
[340769301,1729789861919,-617.35982,0.00062898,120]
[340769302,1729789861929,-500.0,0.00062898,120]
[340769303,1729789861938,-500.0,0.00062898,120]
[340769304,1729789861948,-1000.0,0.00062898,120]
[340769305,1729789861957,-511.66902209,0.00062898,120]
[340769306,1729789861967,-502.69779652,0.00062898,120]
[340769307,1729789861977,-500.0,0.00062898,120]
[340769308,1729789861986,-502.05199991,0.00062898,120]
[340769309,1729789861996,-501.70128136,0.00062898,120]
[340769310,1729789862006,-515.51357568,0.00062898,120]
[340769311,1729789862015,-500.0,0.00062898,120]
[340769312,1729789862025,-500.0,0.00062898,120]
[340769313,1729789862034,-502.68106475,0.00062898,120]
[340769314,1729789862044,-504.52704445,0.00062898,120]
[340769315,1729789862053,-500.0,0.00062898,120]
[340769316,1729789862063,-500.0,0.00062898,120]
[340769317,1729789862074,-500.0,0.00062898,120]
[340769318,1729789862085,-500.0,0.00062898,120]
[340769319,1729789862097,-500.0,0.00062898,120]
[340769320,1729789862107,-500.0,0.00062898,120]
[340769321,1729789862117,-500.0,0.00062898,120]
[340769322,1729789862126,-500.0,0.00062898,120]
[340769323,1729789862228,-500.0,0.00062898,120]
[340769324,1729789862240,-500.0,0.00062898,120]
[340769325,1729789862249,-500.0,0.00062898,120]
[340769326,1729789862259,-500.0,0.00062898,120]
[340769327,1729789862269,-500.0,0.00062898,120]
[340769328,1729789862278,-500.0,0.00062898,120]
[340769329,1729789862288,-542.4083981,0.00062898,120]
[340769330,1729789862298,-502.03306506,0.00062898,120]
[340769331,1729789862307,-307.32857439,0.00062898,120]
[340769332,1729789862317,-500.0,0.00062898,120]
[340769333,1729789862334,-631.76,0.00062898,120]
[340769334,1729789862344,-500.0,0.00062898,120]
[340769335,1729789862354,-500.0,0.00062898,120]
[340769336,1729789862364,-500.0,0.00062898,120]
[340769337,1729789862375,-502.88518937,0.00062898,120]
[340769338,1729789862385,-587.19434812,0.00062898,120]
[340769339,1729789862394,-500.0,0.00062898,120]
[340769340,1729789862403,-500.0,0.00062898,120]
[340769341,1729789862412,-500.0,0.00062898,120]
[340769342,1729789862422,-500.0,0.00062898,120]
[340769343,1729789862431,-502.46461169,0.00062898,120]
[340769344,1729789862441,-500.0,0.00062898,120]
[340769345,1729789862450,-507.66024618,0.00062898,120]
[340769346,1729789862460,-500.0,0.00062898,120]
[340769347,1729789862470,-500.0,0.00062898,120]
[340769348,1729789862480,-500.0,0.00062898,120]
[340769349,1729789862491,-502.5058485,0.00062898,120]
[340769350,1729789862500,-508.08497455,0.00062898,120]
[340769351,1729789862510,-500.0,0.00062898,120]
[340769352,1729789862520,-500.0,0.00062898,120]
[340769353,1729789862529,-523.38676433,0.00062898,120]
[340769354,1729789862539,-515.33396264,0.00062898,120]
[340769355,1729789862548,-500.0,0.00062898,120]
[340769356,1729789862558,-1000.0,0.00062898,120]
[340769357,1729789862567,-500.0,0.00062898,120]
[340769358,1729789862579,-503.41593024,0.00062898,120]
[340769359,1729789862589,-500.0,0.00062898,120]
[340769360,1729789862599,-500.0,0.00062898,120]
[340769361,1729789862609,-151.07795441,0.00062898,120]
[340769362,1729789862618,-500.0,0.00062898,120]
[340769363,1729789862628,-500.0,0.00062898,120]
[340769364,1729789862637,-501.111977,0.00062898,120]
[340769365,1729789862646,-500.0,0.00062898,120]
[340769366,1729789862655,-500.0,0.00062898,120]
[340769367,1729789862665,-500.0,0.00062898,120]
[340769368,1729789862674,-542.18102211,0.00062898,120]
[340769369,1729789862683,-500.0,0.00062898,120]
[340769370,1729789862693,-500.0,0.00062898,120]
[340769371,1729789862703,-500.0,0.00062898,120]
[340769372,1729789862712,-221.71381228,0.00062898,120]
[340769373,1729789862721,-500.0,0.00062898,120]
[340769374,1729789862730,-500.0,0.00062898,120]
[340769375,1729789862740,-500.0,0.00062898,120]
[340769376,1729789862749,-500.0,0.00062898,120]
[340769377,1729789862758,-500.0,0.00062898,120]
[340769378,1729789862767,-500.0,0.00062898,120]
[340769379,1729789862777,-500.0,0.00062898,120]
[340769380,1729789862786,-500.0,0.00062898,120]
[340769381,1729789862795,-500.0,0.00062898,120]
[340769382,1729789862805,-500.0,0.00062898,120]
[340769383,1729789862815,-500.0,0.00062898,120]
[340769384,1729789862825,-500.0,0.00062898,120]
[340769385,1729789862835,-505.12742939,0.00062898,120]
[340769386,1729789862844,-500.0,0.00062898,120]
[340769387,1729789862854,-500.0,0.00062898,120]
[340769388,1729789862863,-500.0,0.00062898,120]
[340769389,1729789862873,-500.0,0.00062898,120]
[340769390,1729789862883,-422.86076039,0.00062899,120]
[340769391,1729789862892,-500.0,0.00062899,120]
[340769392,1729789862901,-500.0,0.00062899,120]
[340769393,1729789862911,-500.0,0.00062899,120]
[340769394,1729789862920,-500.0,0.00062899,120]
[340769395,1729789862931,-556.09,0.00062899,120]
[340769396,1729789862940,-500.0,0.00062899,120]
[340769397,1729789862950,-500.0,0.00062899,120]
[340769398,1729789862959,-533.36,0.00062899,120]
[340769399,1729789862969,-500.0,0.00062899,120]
[340769400,1729789862978,-1073.79,0.00062899,120]
[340769401,1729789862987,-2831.04,0.00062899,120]
[340769402,1729789862997,-2819.06,0.00062899,120]
[340769403,1729789863006,-940.51,0.00062899,120]
[340769404,1729789863015,-4410.82,0.00062899,120]
[340769405,1729789863024,-890.88,0.00062899,120]
[340769406,1729789863034,-2625.4,0.00062899,120]
[340769407,1729789863043,-534.05,0.00062899,120]
[340769408,1729789863052,-2799.56,0.00062899,120]
[340769409,1729789863061,-998.71,0.00062899,120]
[340769410,1729789863072,-500.0,0.00062899,120]
[340769411,1729789863082,-1375.64,0.00062899,120]
[340769412,1729789863093,-500.0,0.00062899,120]
[340769413,1729789863103,-500.0,0.00062899,120]
[340769414,1729789863112,-951.4,0.00062899,7]
[340769415,1729789863122,-415.87201711,0.00062899,120]
[340769416,1729789863131,-538.45,0.00062899,120]
[340769417,1729789863140,-500.0,0.00062899,120]
[340769418,1729789863151,-500.0,0.00062899,120]
[340769419,1729789863160,-500.0,0.00062899,120]
[340769420,1729789863170,-500.0,0.00062899,120]
[340769421,1729789863180,-500.0,0.00062899,120]
[340769422,1729789863189,-500.0,0.00062899,120]
[340769423,1729789863199,-500.0,0.00062899,120]
[340769424,1729789863208,-500.0,0.00062899,120]
[340769425,1729789863218,-2381.66,0.00062899,120]
[340769426,1729789863227,-2028.49,0.00062899,120]
[340769427,1729789863236,-500.0,0.00062899,120]
[340769428,1729789863246,-500.0,0.00062899,120]
[340769429,1729789863255,-500.0,0.00062899,120]
[340769430,1729789863265,-411.10267363,0.00062899,120]
[340769431,1729789863275,-522.68,0.00062899,120]
[340769432,1729789863284,-500.0,0.00062899,120]
[340769433,1729789863294,-500.0,0.00062899,120]
[340769434,1729789863303,-1292.02,0.00062899,120]
[340769435,1729789863313,-584.58413038,0.00062899,120]
[340769436,1729789863324,-535.01717819,0.00062899,120]
[340769437,1729789863333,-500.0,0.00062899,120]
[340769438,1729789863342,-500.0,0.00062899,120]
[340769439,1729789863352,-4070.25,0.00062899,120]
[340769440,1729789863362,-2576.75,0.00062899,120]
[340769441,1729789863372,-233.81393094,0.00062899,2]
[340769442,1729789863380,-500.0,0.00062899,120]
[340769443,1729789863389,-586.14,0.00062899,120]
[340769444,1729789863399,-500.0,0.00062899,120]
[340769445,1729789863408,-517.22,0.00062899,120]
[340769446,1729789863418,-654.13,0.00062899,120]
[340769447,1729789863427,-563.98,0.00062899,120]
[340769448,1729789863436,-500.0,0.00062899,120]
[340769449,1729789863446,-1006.97,0.00062899,120]
[340769450,1729789863455,-570.0,0.000629,116]
[340769451,1729789863466,-108664.87,0.000629,120]
[340769452,1729789863475,-500.0,0.00062978,120]
[340769453,1729789863485,-500.0,0.00062978,120]
[340769454,1729789863495,-936.19,0.00062978,120]
[340769455,1729789863505,-500.0,0.00062978,120]
[340769456,1729789863514,-734.31,0.00062978,120]
[340769457,1729789863524,-907.88,0.00062978,120]
[340769458,1729789863534,-2098.06,0.00062978,120]
[340769459,1729789863544,-916.23,0.00062978,120]
[340769460,1729789863554,-500.0,0.00062978,120]
[340769461,1729789863563,-635.98,0.00062978,120]
[340769462,1729789863574,-500.0,0.00062987,120]
[340769463,1729789863585,-542.7452636,0.00062987,120]
[340769464,1729789863594,-500.0,0.00062987,120]
[340769465,1729789863604,-500.0,0.00062987,120]
[340769466,1729789863701,-500.0,0.00062987,120]
[340769467,1729789863712,-1429.13,0.00062987,120]
[340769468,1729789863721,-2173.08,0.00062987,120]
[340769469,1729789863731,-1202.54,0.00062987,120]
[340769470,1729789863741,-500.0,0.00062987,120]
[340769471,1729789863751,-2593.06,0.00062987,120]
[340769472,1729789863761,-2139.75,0.00062987,120]
[340769473,1729789863771,-572.99,0.00062987,21]
[340769474,1729789863781,-936.98,0.00062987,120]
[340769475,1729789863791,-500.0,0.00062988,120]
[340769476,1729789863801,-500.0,0.00062988,120]
[340769477,1729789863811,-380.33054329,0.00062988,120]
[340769478,1729789863820,-500.0,0.00062988,120]
[340769479,1729789863829,-500.0,0.00062988,120]
[340769480,1729789863839,-500.0,0.00062988,120]
[340769481,1729789863849,-500.0,0.00062988,120]
[340769482,1729789863858,-500.0,0.00062988,120]
[340769483,1729789863868,-659.56,0.00062988,120]
[340769484,1729789863878,-500.0,0.00062988,120]
[340769485,1729789863889,-500.0,0.00062988,120]
[340769486,1729789863898,-876.2,0.00062988,120]
[340769487,1729789863909,-357.4171294,0.00062988,120]
[340769488,1729789863919,-500.0,0.00062988,120]
[340769489,1729789863928,-913.65,0.00062988,120]
[340769490,1729789863938,-500.0,0.00062988,120]
[340769491,1729789863947,-545.44,0.00062988,120]
[340769492,1729789863957,-1060.66,0.00062988,120]
[340769493,1729789863966,-562.05,0.00062988,120]
[340769494,1729789863976,-510.57,0.00062988,120]
[340769495,1729789863985,-766.77,0.00062988,120]
[340769496,1729789863995,-948.63,0.00062988,120]
[340769497,1729789864004,-500.0,0.00062988,120]
[340769498,1729789864013,-500.0,0.00062988,120]
[340769499,1729789864022,-500.0,0.00062988,120]
[340769500,1729789864031,-408.01029164,0.00062988,120]
[340769501,1729789864041,-500.0,0.00062988,120]
[340769502,1729789864051,-803.8,0.00062988,120]
[340769503,1729789864060,-500.0,0.00062988,120]
[340769504,1729789864070,-5209.5,0.00062988,120]
[340769505,1729789864079,-1019.39,0.00062988,120]
[340769506,1729789864090,-1562.94,0.00062988,120]
[340769507,1729789864100,-500.0,0.00062988,120]
[340769508,1729789864109,-500.0,0.00062988,120]
[340769509,1729789864118,-1233.15,0.00062988,120]
[340769510,1729789864128,-510.22,0.00062988,120]
[340769511,1729789864139,-1364.5,0.00062988,120]
[340769512,1729789864148,-500.0,0.00062988,120]
[340769513,1729789864158,-500.0,0.00062988,120]
[340769514,1729789864170,-1393.17,0.00062988,120]
[340769515,1729789864179,-500.0,0.00062988,120]
[340769516,1729789864189,-1914.61,0.00062988,120]
[340769517,1729789864198,-500.0,0.00062988,120]
[340769518,1729789864208,-1696.6,0.00062988,120]
[340769519,1729789864217,-360.1641497,0.00062988,120]
[340769520,1729789864228,-500.0,0.00062988,120]
[340769521,1729789864238,-1440.78,0.00062988,120]
[340769522,1729789864247,-500.0,0.00062988,120]
[340769523,1729789864256,-500.0,0.00062988,120]
[340769524,1729789864266,-1577.79,0.00062988,120]
[340769525,1729789864275,-851.28,0.00062988,120]
[340769526,1729789864285,-500.0,0.00062988,120]
[340769527,1729789864294,-500.0,0.00062988,120]
[340769528,1729789864303,-500.0,0.00062988,120]
[340769529,1729789864313,-500.0,0.00062988,120]